bitfinex/quotes_ETHUSD_20241001
["timestamp","ask_amount","ask_price","bid_price","bid_amount"]
[1727799873106,19.53,2524.2,2524.0,3.96187]
[1727799873515,19.53,2524.2,2524.0,3.96185]
[1727799873829,19.53,2524.2,2524.1,3.9618]
[1727799876641,19.53,2524.5,2524.1,3.9618]
[1727799876850,22.043829,2524.5,2523.9,1.6106]
[1727799877030,22.043829,2524.5,2524.1,3.96175]
[1727799877353,22.043829,2524.5,2524.0,3.96184]
[1727799877802,22.043829,2524.5,2524.1,3.9618]
[1727799878003,3.9614,2524.4,2524.0,3.96184]
[1727799878238,3.9614,2524.4,2524.0,7.92372]
[1727799878239,2.7652429,2524.4,2524.0,7.92372]
[1727799878442,2.7652429,2524.4,2524.0,3.96184]
[1727799878615,19.53,2524.5,2524.1,3.96172]
[1727799878815,19.53,2524.5,2524.0,6.96194]
[1727799878816,23.49119,2524.5,2524.0,6.96194]
[1727799880347,19.53,2524.5,2524.2,3.96163]
[1727799880505,19.53,2524.4,2524.1,3.96179]
[1727799880703,19.53,2524.4,2524.0,3.0]
[1727799880931,1.6472,2524.6,2524.5,3.96118]
[1727799880932,19.53,2524.6,2524.5,3.96118]
[1727799881133,19.53,2524.6,2524.2,3.0]
[1727799881319,19.53,2524.6,2524.2,6.96158]
[1727799881531,19.53,2524.6,2524.3,3.96142]
[1727799881755,19.53,2524.6,2524.2,6.96158]
[1727799881938,21.483,2524.6,2524.2,6.96158]
[1727799882119,25.44403,2524.6,2524.2,6.96157]
[1727799882318,25.44403,2524.6,2524.2,3.96157]
[1727799882848,1.5471,2524.5,2524.0,7.92368]
[1727799883154,1.5471,2524.5,2524.1,6.96179]
[1727799883343,3.85011,2524.5,2524.1,6.96179]
[1727799883965,7.8113,2524.5,2524.1,6.96179]
[1727799884261,3.96135,2524.4,2524.0,3.0]
[1727799884959,3.85011,2524.5,2524.2,3.96164]
[1727799885520,19.53,2524.4,2524.2,3.96164]
[1727799885738,20.88093147,2524.4,2524.2,3.96164]
[1727799886621,20.88093147,2524.4,2524.2,7.92328]
[1727799886816,19.53,2524.4,2524.2,3.96164]
[1727799887130,19.53,2524.4,2524.3,3.96149]
[1727799887311,19.53,2524.4,2524.3,6.96149]
[1727799887930,19.53,2524.4,2524.3,8.50209]
[1727799888439,19.53,2525.0,2524.9,3.96055]
[1727799888642,19.53,2525.2,2525.0,3.96037]
[1727799888840,22.031883,2525.2,2524.9,7.92101]
[1727799889330,19.53,2525.1,2525.0,3.96039]
[1727799891869,19.53,2525.1,2524.7,3.96075]
[1727799892278,19.53,2525.1,2524.9,3.96043]
[1727799892632,19.53,2525.1,2524.9,7.92087]
[1727799892846,19.53,2525.1,2524.9,3.96043]
[1727799893044,19.53,2525.1,2525.0,3.96039]
[1727799893268,19.53,2525.1,2525.0,4.752472]
[1727799893488,5.52759,2525.7,2525.1,3.0]
[1727799893489,19.53,2525.4,2525.1,3.0]
[1727799893635,19.53,2525.4,2525.0,12.45893804]
[1727799893636,19.53,2525.4,2525.3,6.95992]
[1727799893837,19.53,2525.9,2525.4,3.0]
[1727799894054,3.95847,2526.3,2525.4,3.0]
[1727799894055,19.53,2525.8,2525.7,3.95918]
[1727799894587,19.53,2526.1,2525.8,6.959]
[1727799894879,19.53,2526.1,2525.8,3.95904]
[1727799895229,19.53,2526.1,2525.9,3.95897]
[1727799895862,19.53,2526.1,2525.8,3.95904]
[1727799896069,19.53,2526.1,2525.8,7.91809]
[1727799896247,19.53,2526.1,2525.9,3.95898]
[1727799897465,19.53,2526.1,2526.0,6.95882]
[1727799897745,1.628,2527.0,2526.6,3.95779]
[1727799898050,19.53,2527.1,2527.0,3.95712]
[1727799898256,19.53,2527.1,2526.8,5.46823]
[1727799898640,19.53,2527.1,2527.0,3.95726]
[1727799899081,7.38,2527.8,2527.0,3.95726]
[1727799899082,19.53,2527.4,2527.2,3.95694]
[1727799899280,7.38,2527.8,2527.4,3.95649]
[1727799899281,19.53,2527.7,2527.4,3.95649]
[1727799900244,19.53,2528.0,2527.5,3.0]
[1727799900504,2.506144,2528.0,2527.5,3.95637]
[1727799900643,2.506144,2528.0,2527.4,5.60277]
[1727799900644,6.461984,2528.0,2527.4,5.60277]
[1727799900985,6.461984,2528.0,2527.0,0.793031]
[1727799900986,3.9565,2527.5,2527.0,3.0]
[1727799901190,23.48674,2527.4,2527.0,3.0]
[1727799901387,25.1229,2527.3,2526.7,3.95762]
[1727799901684,25.1229,2527.3,2526.5,1.6298]
[1727799901685,24.07404,2527.3,2526.5,1.6298]
[1727799901848,3.95695,2527.2,2526.2,1.5326]
[1727799902196,3.95695,2527.2,2526.6,3.95779]
[1727799902197,23.48714,2527.1,2526.6,3.95779]
[1727799902346,23.48714,2527.1,2526.4,3.9581]
[1727799902347,3.95751,2526.9,2526.4,3.9581]
[1727799902542,1.5145,2526.9,2526.2,5.49103]
[1727799902749,23.48767,2526.8,2526.1,3.95857]
[1727799903063,1.6531,2526.5,2525.9,3.95888]
[1727799903394,23.48828,2526.4,2525.9,3.95888]
[1727799903541,23.48841,2526.3,2525.8,3.9591]
[1727799903742,19.53,2526.3,2525.8,3.9591]
[1727799903997,3.95852,2526.2,2525.7,3.95922]
[1727799904160,22.044138,2526.3,2525.8,3.95913]
[1727799904573,22.044138,2526.3,2525.4,1.5131]
[1727799904888,19.53,2526.3,2526.0,3.95882]
[1727799905267,19.53,2526.3,2525.8,7.91809]
[1727799905465,19.53,2526.3,2525.8,3.95901]
[1727799905780,19.53,2526.3,2525.9,3.95894]
[1727799905999,19.53,2526.3,2525.6,6.95938]
[1727799906000,20.03935508,2526.3,2525.6,6.95938]
[1727799906167,3.95859,2526.2,2525.6,10.91867]
[1727799906365,1.6531,2526.1,2525.6,10.91867]
[1727799906593,1.6531,2526.1,2525.6,3.0]
[1727799906767,4.21820451,2526.1,2525.6,3.95945]
[1727799907463,3.95914,2525.8,2525.0,3.96029]
[1727799907668,3.95961,2525.5,2525.0,3.96029]
[1727799907970,19.53,2525.5,2525.2,3.95998]
[1727799908661,19.53,2525.5,2524.8,3.96065]
[1727799908662,22.044248,2525.5,2524.8,3.96065]
[1727799908864,22.044248,2525.5,2525.2,3.96006]
[1727799909066,22.044248,2525.5,2525.1,3.9602]
[1727799909067,19.53,2525.5,2525.1,3.9602]
[1727799910285,19.53,2525.5,2525.1,7.92035]
[1727799910485,19.53,2525.5,2525.1,3.96015]
[1727799910711,23.48971,2525.5,2524.9,3.96046]
[1727799911022,3.96001,2525.3,2524.8,3.96065]
[1727799911185,23.48966,2525.5,2524.8,3.0]
[1727799911186,26.003991,2525.5,2524.8,3.0]
[1727799911515,19.53,2525.5,2524.8,3.0]
[1727799911717,19.53,2525.5,2525.4,3.95976]
[1727799911881,6.52385451,2526.1,2525.4,3.95976]
[1727799911882,1.5955,2526.0,2525.4,3.95976]
[1727799912088,1.5955,2526.0,2525.8,3.95909]
[1727799912277,1.5955,2526.0,2525.9,3.95898]
[1727799912472,19.53,2526.2,2525.9,3.95886]
[1727799912715,19.53,2526.2,2525.9,3.9589]
[1727799913124,19.53,2526.2,2526.0,3.95869]
[1727799913323,19.53,2526.2,2525.9,3.9589]
[1727799913543,19.53,2526.2,2525.8,3.9591]
[1727799913852,19.53,2526.2,2525.7,3.95914]
[1727799914091,19.53,2526.2,2525.4,4.5102]
[1727799914225,19.53,2526.2,2526.1,3.95867]
[1727799915118,19.53,2526.2,2526.0,3.95881]
[1727799915533,19.53,2526.2,2525.8,3.95902]
[1727799915864,19.53,2526.2,2525.6,6.95937]
[1727799916077,19.53,2526.2,2525.7,3.95929]
[1727799916078,23.48851,2526.2,2525.7,3.95929]
[1727799916213,19.53,2526.2,2525.8,3.95911]
[1727799916414,19.53,2526.2,2525.8,7.91816]
[1727799916615,24.0749407,2526.2,2525.6,6.95933]
[1727799917132,20.1163307,2526.2,2525.7,3.95929]
[1727799917339,24.0748507,2526.2,2525.7,3.95929]
[1727799917667,24.0748507,2526.2,2525.8,3.95909]
[1727799917668,20.1163307,2526.2,2525.8,3.95909]
[1727799918029,19.53,2526.1,2525.8,3.95903]
[1727799918349,19.53,2526.1,2525.8,7.91808]
[1727799918518,19.53,2526.1,2525.8,3.95903]
[1727799918721,19.53,2526.1,2525.6,3.03002414]
[1727799918956,19.53,2526.1,2525.8,6.959]
[1727799919129,19.53,2526.1,2525.9,3.95896]
[1727799919331,19.53,2526.1,2525.8,3.0]
[1727799919946,3.95882,2526.0,2525.5,3.95953]
[1727799920144,21.878853,2526.1,2525.7,3.95922]
[1727799920418,21.878853,2526.1,2525.6,3.95945]
[1727799920419,23.48871,2526.1,2525.6,3.95945]
[1727799920622,1.5577,2526.0,2525.5,3.95958]
[1727799920826,1.5577,2525.7,2525.1,3.96013]
[1727799921057,19.53,2525.6,2525.1,3.96013]
[1727799921266,19.53,2525.6,2525.2,3.96007]
[1727799921768,3.95961,2525.5,2525.0,3.96038]
[1727799921920,26.390076,2525.6,2525.1,3.96016]
[1727799922122,26.390076,2525.6,2524.8,5.50524]
[1727799922123,19.53,2525.5,2524.8,5.50524]
[1727799922379,19.53,2525.5,2523.6,2.06017757]
[1727799922380,1.6017,2525.4,2525.0,3.9603]
[1727799922524,1.6017,2525.4,2525.2,3.95997]
[1727799922730,1.6017,2525.4,2525.2,7.91992]
[1727799922950,1.6017,2525.4,2525.2,3.95995]
[1727799923270,1.6017,2525.4,2525.1,3.96015]
[1727799923567,1.6017,2525.4,2525.2,3.95998]
[1727799924384,19.53,2525.5,2525.2,3.95998]
[1727799924585,19.53,2525.5,2525.2,7.91997]
[1727799924762,19.53,2525.5,2525.2,3.95998]
[1727799924966,19.53,2525.5,2525.2,3.96]
[1727799925263,19.53,2525.5,2525.4,3.95976]
[1727799925695,19.53,2525.5,2525.3,6.95979]
[1727799925967,19.53,2525.5,2525.4,3.95976]
[1727799926170,19.53,2525.5,2525.3,6.95979]
[1727799926171,19.53,2525.5,2525.3,3.0]
[1727799926473,19.53,2525.5,2525.2,3.96006]
[1727799926677,19.53,2525.5,2525.3,3.95988]
[1727799926874,19.53,2525.6,2525.3,3.95988]
[1727799927367,19.53,2525.6,2525.3,7.9197]
[1727799927567,19.53,2525.6,2525.4,3.95962]
[1727799927768,19.53,2525.6,2525.5,3.95961]
[1727799928813,19.53,2525.6,2525.4,3.95976]
[1727799929173,19.53,2525.6,2525.5,3.95961]
[1727799930271,19.53,2525.6,2525.5,4.751547]
[1727799930472,19.53,2525.9,2525.8,3.95914]
[1727799930874,19.53,2525.9,2525.7,3.9592]
[1727799931071,1.6566,2526.1,2524.8,1.5419]
[1727799931305,1.6566,2525.6,2524.9,0.06714679]
[1727799931487,1.6566,2525.6,2525.3,3.95983]
[1727799931726,1.6566,2525.6,2525.4,3.95976]
[1727799932105,1.6566,2525.6,2525.2,3.96007]
[1727799932310,1.6566,2525.6,2525.0,3.96029]
[1727799932517,5.61607,2525.6,2525.1,3.96013]
[1727799932812,7.73473,2525.6,2525.1,3.96013]
[1727799933008,11.69427,2525.6,2525.1,3.96013]
[1727799933172,3.77526,2525.6,2525.2,3.95998]
[1727799933611,3.77526,2525.6,2525.1,3.96013]
[1727799933804,7.73478,2525.6,2525.1,7.92027]
[1727799934000,7.73478,2525.6,2525.1,7.92029]
[1727799934315,3.77526,2525.6,2525.2,3.95996]
[1727799934519,7.73473,2525.6,2525.1,7.92027]
[1727799934686,7.73473,2525.6,2525.1,3.96013]
[1727799934895,0.773473,2525.5,2524.9,3.96047]
[1727799935212,0.773473,2525.5,2525.0,6.96029]
[1727799935213,3.95961,2525.5,2525.0,6.96029]
[1727799935628,3.95962,2525.5,2525.0,6.96029]
[1727799935813,19.53,2525.4,2525.0,6.96029]
[1727799935978,19.53,2525.4,2525.0,3.0]
[1727799936178,19.53,2525.4,2525.1,3.96023]
[1727799936804,19.53,2525.4,2525.0,6.96038]
[1727799938230,19.53,2525.4,2525.2,3.96]
[1727799938524,19.53,2525.4,2525.2,3.96008]
[1727799938819,19.53,2525.4,2525.0,3.0]
[1727799938820,25.60843,2525.4,2525.0,3.0]
[1727799939313,25.60843,2525.4,2525.0,3.96032]
[1727799939515,21.64866,2525.4,2525.0,3.96032]
[1727799940015,21.64866,2525.4,2525.1,3.96022]
[1727799940219,21.64866,2525.4,2524.5,1.6463]
[1727799940220,1.66,2525.2,2524.5,1.6463]
[1727799940426,19.53,2525.1,2524.8,3.96068]
[1727799940718,23.49024,2525.1,2524.2,5.47039]
[1727799940877,23.49024,2525.1,2524.9,3.96053]
[1727799940878,19.53,2525.1,2524.9,3.96053]
[1727799941382,19.53,2525.1,2524.8,3.96061]
[1727799941810,19.53,2525.1,2524.7,3.96077]
[1727799942218,26.6574598,2525.1,2524.6,3.0]
[1727799942428,3.96048,2525.0,2524.6,3.0]
[1727799942631,26.6574598,2525.1,2524.6,3.0]
[1727799942777,1.6253,2525.0,2524.6,3.96088]
[1727799943419,1.6253,2525.0,2524.8,3.96063]
[1727799944089,19.53,2525.1,2525.0,3.96039]
[1727799944721,19.53,2525.3,2525.0,3.96039]
[1727799944923,19.53,2525.3,2525.0,3.96028]
[1727799945098,19.53,2525.3,2524.8,3.96059]
[1727799945412,19.53,2525.3,2524.9,3.96046]
[1727799945619,19.53,2525.3,2525.0,3.96035]
[1727799946383,23.49,2525.3,2524.7,3.96077]
[1727799946597,30.70226,2525.3,2524.8,3.96069]
[1727799947084,1.6524,2525.0,2524.5,3.9611]
[1727799947593,5.61287,2525.0,2524.5,7.9222]
[1727799947827,3.96084,2524.8,2524.1,5.60261]
[1727799947980,3.96118,2524.5,2524.0,3.96186]
[1727799948183,1.5592,2524.6,2524.2,3.96156]
[1727799948184,19.53,2524.4,2524.2,3.96156]
[1727799948617,19.53,2524.4,2524.0,7.92375]
[1727799948928,19.53,2524.4,2524.1,3.9618]
[1727799949619,19.53,2524.4,2524.3,3.96149]
[1727799950636,19.53,2524.4,2524.2,3.96165]
[1727799950805,19.53,2524.4,2524.3,3.96149]
[1727799951832,19.53,2524.4,2524.3,5.48199]
[1727799952645,19.53,2524.4,2524.3,3.96149]
[1727799952940,3.82460473,2525.2,2524.3,3.96149]
[1727799952941,21.165,2525.1,2524.7,3.96077]
[1727799953107,19.53,2525.0,2524.7,3.96077]
[1727799953893,19.53,2525.0,2524.8,3.96069]
[1727799954826,19.53,2525.0,2524.9,3.96055]
[1727799955012,21.1316,2525.3,2525.0,3.96039]
[1727799955213,19.53,2525.3,2525.2,3.96008]
[1727799955424,19.53,2525.3,2525.2,4.520478]
[1727799955728,19.53,2525.3,2525.2,8.34508273]
[1727799956115,19.53,2525.3,2525.2,4.520478]
[1727799957945,19.53,2525.8,2525.2,0.560398]
[1727799958171,19.53,2526.1,2525.9,3.95898]
[1727799958659,19.53,2526.1,2525.7,3.95926]
[1727799959017,19.53,2526.1,2525.7,3.95922]
[1727799959226,19.53,2526.1,2525.8,3.95908]
[1727799960916,19.53,2526.1,2525.9,3.95897]
[1727799961219,19.53,2526.3,2525.9,0.791805]
[1727799961447,19.53,2526.3,2526.2,3.95851]
[1727799962455,1.5235,2526.2,2526.0,3.0]
[1727799962921,19.53,2526.3,2526.0,3.0]
[1727799962922,19.53,2526.3,2526.0,6.95882]
[1727799963127,19.53,2526.3,2526.0,3.0]
[1727799963325,19.53,2526.3,2526.0,6.9588]
[1727799963523,22.031155,2526.3,2525.7,3.9592]
[1727799963768,25.989595,2526.3,2525.8,3.95912]
[1727799964226,3.95861,2526.2,2525.7,3.95928]
[1727799964828,25.989595,2526.3,2525.8,3.95901]
[1727799965265,3.95853,2526.2,2525.8,3.95901]
[1727799965580,19.53,2526.1,2525.8,0.791844]
[1727799965760,19.53,2526.1,2525.4,3.0]
[1727799965761,19.53,2526.1,2526.0,8.46362]
[1727799965946,19.53,2526.8,2526.7,3.95773]
[1727799966359,19.53,2526.8,2526.6,3.95784]
[1727799966677,19.53,2526.8,2526.5,3.95803]
[1727799966838,19.53,2526.8,2526.5,7.91598]
[1727799967038,19.53,2526.8,2526.6,3.95781]
[1727799967234,19.53,2526.8,2526.7,3.95773]
[1727799969128,19.53,2526.8,2526.6,3.0]
[1727799969337,19.53,2526.8,2526.3,3.95822]
[1727799969338,21.483,2526.8,2526.3,3.95822]
[1727799969788,3.95792,2526.6,2526.0,3.95875]
[1727799970094,19.53,2526.5,2526.2,3.95847]
[1727799970239,19.53,2526.5,2525.9,1.70549567]
[1727799970240,19.53,2526.5,2525.9,5.58538]
[1727799970440,19.53,2526.5,2525.9,3.95888]
[1727799970665,5.91126,2526.4,2525.9,3.95893]
[1727799970854,1.6201,2526.3,2525.8,3.95902]
[1727799971234,3.95854,2526.2,2525.7,3.95918]
[1727799971436,3.95854,2526.2,2525.8,3.95912]
[1727799971968,3.95854,2526.2,2525.8,3.95913]
[1727799972363,3.95872,2526.1,2525.6,3.95937]
[1727799972568,3.95872,2526.1,2525.6,3.95936]
[1727799972768,5.10755,2526.2,2525.6,3.95933]
[1727799972970,9.06621,2526.2,2525.7,3.95922]
[1727799973578,1.14901,2526.2,2525.6,3.95939]
[1727799973954,1.6201,2526.3,2525.8,3.95899]
[1727799974154,1.6201,2526.3,2525.9,3.95889]
[1727799974369,23.48851,2526.2,2525.6,4.655269]
[1727799974609,3.95874,2526.1,2525.6,3.95933]
[1727799974755,3.95874,2526.1,2525.4,6.95965]
[1727799974756,3.95898,2525.9,2525.4,6.95965]
[1727799975089,21.0563,2525.8,2525.6,3.95936]
[1727799975453,21.0563,2525.8,2525.5,3.95959]
[1727799975795,21.0563,2525.8,2525.6,3.9594]
[1727799976158,19.53,2525.7,2525.1,3.96017]
[1727799976346,19.53,2525.7,2525.3,3.95984]
[1727799976548,19.53,2525.7,2525.4,3.95965]
[1727799976954,19.53,2525.7,2525.3,7.91967]
[1727799977456,19.53,2525.7,2525.4,3.95967]
[1727799977779,19.53,2525.7,2525.3,3.95983]
[1727799978382,19.53,2525.7,2525.1,3.96014]
[1727799978383,2.712114,2525.6,2525.2,3.96001]
[1727799978761,2.712114,2525.6,2525.2,3.96007]
[1727799978960,19.53,2525.7,2525.2,3.96]
[1727799979199,3.95955,2525.6,2525.0,3.96031]
[1727799979407,3.95955,2525.6,2524.8,3.96059]
[1727799979408,3.95993,2525.3,2524.8,3.96059]
[1727799979703,21.0642,2525.2,2524.6,3.96102]
[1727799979999,5.52695,2524.9,2524.4,3.96131]
[1727799980208,0.948737,2524.8,2524.4,3.96131]
[1727799980361,0.948737,2524.8,2524.2,3.96155]
[1727799980712,0.948737,2524.8,2524.4,3.96131]
[1727799980713,19.53,2524.7,2524.4,3.96131]
[1727799981063,19.53,2524.7,2524.5,3.96116]
[1727799981267,19.53,2524.7,2524.6,3.96102]
[1727799981699,19.53,2524.7,2524.5,3.96116]
[1727799982002,2.10963,2524.7,2524.2,3.96164]
[1727799982187,1.6098,2524.6,2524.2,3.96156]
[1727799982356,1.6098,2524.6,2524.4,3.96133]
[1727799982560,19.53,2524.8,2524.4,3.96122]
[1727799982863,19.53,2524.8,2524.6,3.96096]
[1727799983588,19.53,2524.9,2524.8,3.9607]
[1727799983794,19.53,2525.1,2525.0,3.96039]
[1727799983962,19.53,2525.1,2524.7,5.56912]
[1727799983963,19.53,2525.1,2524.9,3.96042]
[1727799984270,19.53,2525.1,2524.7,1.68017428]
[1727799984505,19.53,2525.1,2524.9,3.96047]
[1727799984691,19.53,2525.1,2525.0,3.96039]
[1727799987819,19.53,2525.1,2524.8,3.0]
[1727799988038,25.44325,2525.1,2524.4,1.6027]
[1727799988254,1.5339,2525.0,2524.3,3.96138]
[1727799988462,1.5339,2525.0,2524.8,3.96069]
[1727799988957,19.53,2525.1,2524.8,3.96069]
[1727799989118,19.53,2525.2,2524.8,3.96062]
[1727799989562,19.53,2525.2,2524.6,5.535]
[1727799989563,23.49019,2525.2,2524.7,3.96084]
[1727799989857,22.428411,2525.2,2524.7,3.96084]
[1727799990056,22.428411,2525.2,2524.6,5.535]
[1727799990210,22.428411,2525.2,2524.8,3.96069]
[1727799990414,19.53,2525.2,2524.8,3.96069]
[1727799990616,19.53,2525.2,2524.9,3.96053]
[1727799990816,19.53,2525.2,2524.6,1.5741]
[1727799991074,19.53,2525.2,2524.7,3.96074]
[1727799991553,19.53,2525.2,2525.0,3.96038]
[1727799992153,19.53,2525.2,2525.0,7.9207]
[1727799992364,19.53,2525.2,2525.0,3.96032]
[1727799992571,19.53,2525.2,2525.1,3.96023]
[1727799993157,19.53,2525.2,2525.0,3.96032]
[1727799993351,19.53,2525.2,2525.0,3.96031]
[1727799994164,19.53,2525.2,2524.8,7.92119]
[1727799994315,19.53,2525.2,2524.9,3.96047]
[1727799995258,19.53,2525.2,2524.8,3.96058]
[1727799995259,19.53,2525.2,2524.8,7.92118]
[1727799995464,22.428368,2525.2,2524.4,3.0]
[1727799995673,3.96036,2525.1,2524.6,3.96088]
[1727799995872,3.96036,2525.1,2524.7,3.0]
[1727799996075,7.1486238,2525.1,2524.7,3.0]
[1727799996279,3.96055,2524.9,2524.5,3.96116]
[1727799996451,7.1486238,2525.1,2523.7,3.96243]
[1727799996452,1.6415,2524.8,2524.1,5.61999]
[1727799996777,21.1715,2524.8,2524.2,3.9616]
[1727799996975,21.1715,2524.8,2524.6,3.96089]
[1727799997181,21.1715,2524.8,2524.7,3.96086]
[1727799997471,21.1715,2524.8,2524.6,3.96089]
[1727799997693,21.1715,2524.8,2524.3,0.958159]
[1727799997841,21.1715,2524.8,2524.6,3.96091]
[1727799998036,21.1715,2524.8,2524.1,1.6582]
[1727799998037,22.18623752,2524.8,2524.1,1.6582]
[1727799998241,19.53,2524.7,2524.6,3.96102]
[1727800001858,19.53,2524.7,2524.6,10.78625035]
[1727800002587,3.95923,2525.8,2525.4,3.95976]
[1727800002588,19.53,2525.5,2525.4,3.95976]
[1727800002760,1.6217,2525.8,2525.5,3.95956]
[1727800002761,19.53,2525.7,2525.5,3.95956]
[1727800002942,1.6217,2525.8,2525.6,3.95945]
[1727800002943,21.1517,2525.8,2525.6,3.95945]
[1727800003142,1.6217,2525.8,2525.3,3.95992]
[1727800003340,3.89666019,2525.8,2525.4,3.95968]
[1727800003573,1.6217,2525.8,2525.3,3.95992]
[1727800003840,5.58085,2525.8,2525.3,3.95992]
[1727800004067,3.95931,2525.7,2525.2,3.96007]
[1727800004287,3.95931,2525.7,2525.2,7.92007]
[1727800004484,3.95931,2525.7,2525.2,3.96]
[1727800004666,0.954016,2525.6,2525.2,7.91997]
[1727800004849,5.58085,2525.8,2525.4,3.95976]
[1727800005841,5.58085,2525.8,2525.3,3.95992]
[1727800006043,9.54007,2525.8,2525.3,3.95992]
[1727800006389,1.6217,2525.8,2525.5,3.95948]
[1727800006545,1.3717,2525.8,2525.6,3.95932]
[1727800006939,19.53,2525.7,2525.6,3.95932]
[1727800007270,19.53,2525.7,2525.5,7.919]
[1727800007471,19.53,2525.7,2525.6,3.95945]
[1727800008045,19.53,2525.7,2525.5,3.95948]
[1727800008245,19.53,2525.7,2525.6,3.95945]
[1727800009689,19.53,2525.7,2525.5,3.9596]
[1727800009897,25.57958,2525.7,2525.2,3.96005]
[1727800010099,19.53,2525.6,2525.0,3.96027]
[1727800010251,19.53,2525.6,2525.1,6.96013]
[1727800010252,23.48959,2525.6,2525.1,6.96013]
[1727800010885,3.96004,2525.3,2524.8,3.96057]
[1727800011113,3.96004,2525.3,2524.7,3.96077]
[1727800011114,19.53,2525.2,2524.9,3.96054]
[1727800011687,19.53,2525.2,2525.1,3.96023]
[1727800012699,1.6228,2525.6,2525.1,3.96023]
[1727800012700,25.11226,2525.6,2525.1,3.96023]
[1727800012900,25.11226,2525.6,2525.0,3.96038]
[1727800013101,3.95962,2525.5,2525.1,3.96015]
[1727800013310,29.07182,2525.6,2525.1,3.96015]
[1727800013513,3.95968,2525.5,2525.1,3.96015]
[1727800013979,25.11226,2525.6,2525.1,3.96015]
[1727800014170,29.07181,2525.6,2525.1,3.96015]
[1727800014781,25.11226,2525.6,2525.2,3.96008]
[1727800015010,21.1528,2525.6,2525.5,3.95961]
[1727800015381,19.53,2525.6,2525.5,3.95961]
[1727800017521,19.53,2525.6,2525.3,6.95989]
[1727800018027,19.53,2525.6,2525.4,3.95976]
[1727800018256,19.53,2525.6,2525.3,6.95989]
[1727800018600,19.53,2525.6,2525.4,3.95975]
[1727800018797,19.53,2525.7,2525.3,3.0]
[1727800019037,21.42326723,2525.7,2525.2,3.95995]
[1727800019344,19.53,2525.7,2525.6,3.95945]
[1727800021357,19.53,2526.0,2525.9,3.95898]
[1727800022807,19.53,2526.0,2525.7,3.95923]
[1727800023006,19.53,2526.0,2525.8,3.95912]
[1727800024045,19.53,2526.0,2525.9,3.95898]
[1727800024405,19.53,2526.0,2525.7,4.355203]
[1727800024618,23.4886,2526.2,2525.8,3.95912]
[1727800024820,19.53,2526.1,2525.8,3.95912]
[1727800026045,19.53,2526.1,2525.4,1.5566]
[1727800026245,19.53,2526.1,2525.6,3.95938]
[1727800026828,19.53,2526.1,2525.8,3.95907]
[1727800027258,19.53,2526.1,2525.6,5.206927]
[1727800027560,19.53,2526.1,2525.8,3.95907]
[1727800028061,19.53,2526.1,2525.6,5.28605466]
[1727800028062,19.53,2526.1,2525.6,5.206967]
[1727800028274,3.95885,2526.0,2525.5,6.95954]
[1727800028620,19.53,2526.1,2525.5,6.9595]
[1727800028926,23.48868,2526.1,2525.6,3.95942]
[1727800029357,23.48868,2526.1,2525.7,3.95929]
[1727800029358,19.53,2526.1,2525.7,3.95929]
[1727800029724,19.53,2526.1,2525.6,5.206902]
[1727800029725,23.48869,2526.1,2525.6,5.206902]
[1727800030237,3.95883,2526.0,2525.6,3.95944]
[1727800030557,19.53,2525.9,2525.5,6.95958]
[1727800030763,1.5381,2525.8,2525.4,3.95976]
[1727800030935,27.44811,2525.9,2524.8,1.5231]
[1727800030936,1.5381,2525.4,2524.8,1.5231]
[1727800031136,3.96025,2525.1,2524.6,3.96095]
[1727800031472,19.53,2525.0,2524.9,3.96055]
[1727800032161,19.53,2525.0,2524.8,3.96069]
[1727800032162,5.48009507,2525.1,2524.2,1.6268]
[1727800032379,1.6582,2524.6,2524.0,5.58864]
[1727800032523,5.61931,2524.6,2524.0,7.9237]
[1727800032874,5.61931,2524.6,2524.1,3.96179]
[1727800033025,1.6582,2524.6,2524.1,3.96179]
[1727800033229,1.6582,2524.6,2524.0,3.96184]
[1727800033230,1.6582,2524.6,2524.2,3.96163]
[1727800033430,3.9612,2524.5,2524.0,3.96184]
[1727800033631,21.1882,2524.6,2524.0,3.96188]
[1727800033964,3.96119,2524.5,2523.9,3.0]
[1727800034135,3.96119,2524.5,2523.8,5.58896]
[1727800034136,3.96119,2524.5,2524.1,3.0]
[1727800034863,25.14931,2524.6,2524.1,3.0]
[1727800035064,25.14931,2524.6,2524.2,3.96163]
[1727800035065,21.1882,2524.6,2524.2,3.96163]
[1727800035239,21.1882,2524.6,2524.1,3.696187]
[1727800035240,25.14932,2524.6,2524.1,3.0]
[1727800035571,3.96118,2524.5,2524.1,3.0]
[1727800035733,21.1882,2524.6,2523.6,5.54118]
[1727800035734,3.96134,2524.4,2523.6,5.54118]
[1727800035939,1.6306,2524.3,2523.7,3.96232]
[1727800036281,3.96168,2524.2,2523.7,3.96232]
[1727800037462,3.96168,2524.2,2523.8,3.0]